fUSD/lending_fUSD_20250110
["ID","MTS","AMOUNT","RATE_DAILY","PERIOD"]
[348422948,1736524272267,-57.18324445,0.00010928,2]
[348422949,1736524272276,-445.84788678,0.00010928,2]
[348422950,1736524272288,-554.15211322,0.00010928,2]
[348422951,1736524272298,-1000.0,0.00010928,2]
[348422952,1736524272307,-1000.0,0.00010928,2]
[348422953,1736524272316,-1000.0,0.00010928,2]
[348422954,1736524272326,-1000.0,0.00010928,2]
[348422955,1736524272335,-1000.0,0.00010928,2]
[348422956,1736524272345,-1000.0,0.00010928,2]
[348422957,1736524272355,-1000.0,0.00010928,2]
[348422958,1736524272364,-1000.0,0.00010928,2]
[348422959,1736524272374,-1000.0,0.00010928,2]
[348422960,1736524272383,-627.38,0.00010928,2]
[348422961,1736524272395,-1000.0,0.00010928,2]
[348422962,1736524272405,-1000.0,0.00010928,2]
[348422963,1736524272415,-117.04944074,0.00010928,2]
[348422964,1736524272724,-317.98769101,8.735e-05,2]
[348422965,1736524272736,-182.01230899,8.735e-05,2]
[348422966,1736524272745,-500.0,8.737e-05,2]
[348422967,1736524272755,-178.72,9.011e-05,2]
[348422968,1736524272764,-589.92,9.831e-05,2]
[348422969,1736524272773,-589.92,0.00010105,2]
[348422970,1736524272783,-1017.21345404,0.00010379,2]
[348422971,1736524272818,-392.50654596,0.00010379,2]
[348422972,1736524272828,-589.92,0.00010379,2]
[348422973,1736524272839,-589.92,0.00010653,2]
[348422974,1736524272848,-874.30325528,0.00010653,2]
[348422975,1736524272861,-312.3160075,0.00010653,2]
[348422976,1736524272872,-223.10073722,0.00010653,2]
[348422977,1736524272882,-478.18951064,0.000109,2]
[348422978,1736524272896,-589.92,0.00010927,2]
[348422979,1736524272906,-513.78975264,0.00010928,2]
[348422980,1736524272921,-297.4799979,0.00010928,2]
[348422981,1736524272933,-71.68080872,0.00010928,2]
[348422982,1736524272943,-486.15719128,0.00010928,2]
[348422983,1736524272957,-281.82341995,0.00010928,2]
[348422984,1736524273586,-232.01938877,0.00010928,2]
[348422985,1736524273597,-1000.0,0.00010928,2]
[348422986,1736524273607,-1000.0,0.00010928,2]
[348422987,1736524273620,-1000.0,0.00010928,2]
[348422988,1736524273630,-991.74925018,0.00010928,2]
[348422989,1736524273646,-8.25074982,0.00010928,2]
[348422990,1736524273655,-1000.0,0.00010928,2]
[348422991,1736524273665,-1000.0,0.00010928,2]
[348422992,1736524273674,-995.6506,0.00010928,2]
[348422993,1736524273684,-1166.68,0.00010928,2]
[348422994,1736524273693,-500.0,0.00010928,2]
[348422995,1736524273703,-967.77,0.00010928,2]
[348422996,1736524273712,-500.0,0.00010928,2]
[348422997,1736524273721,-500.0,0.00010928,2]
[348422998,1736524273730,-1005.93,0.00010928,2]
[348422999,1736524273740,-781.9,0.00010928,2]
[348423000,1736524273750,-2150.01,0.00010928,2]
[348423001,1736524273760,-500.0,0.00010928,2]
[348423002,1736524273772,-1052.34,0.00010928,2]
[348423003,1736524273784,-912.91,0.00010928,2]
[348423004,1736524273793,-1815.27,0.00010928,2]
[348423005,1736524273803,-856.07,0.00010928,2]
[348423006,1736524273814,-966.55,0.00010928,2]
[348423007,1736524273826,-1861.8,0.00010928,2]
[348423008,1736524273836,-688.9,0.00010928,2]
[348423009,1736524273847,-1068.54,0.00010928,2]
[348423010,1736524273857,-978.06,0.00010928,2]
[348423011,1736524273867,-500.0,0.00010928,2]
[348423012,1736524273877,-587.28,0.00010928,2]
[348423013,1736524273891,-877.06,0.00010928,2]
[348423014,1736524273901,-766.28,0.00010928,2]
[348423015,1736524273911,-2611.4,0.00010928,2]
[348423016,1736524273921,-1556.83,0.00010928,2]
[348423017,1736524273934,-826.2,0.00010928,2]
[348423018,1736524273944,-7495.58,0.00010928,2]
[348423019,1736524273955,-784.4,0.00010928,2]
[348423020,1736524273965,-797.2,0.00010928,2]
[348423021,1736524273974,-915.4,0.00010928,2]
[348423022,1736524273985,-1078.79,0.00010928,2]
[348423023,1736524273994,-1363.41,0.00010928,2]
[348423024,1736524274007,-1339.84,0.00010928,2]
[348423025,1736524274016,-1267.14,0.00010928,2]
[348423026,1736524274026,-1698.13,0.00010928,2]
[348423027,1736524274035,-949.94,0.00010928,2]
[348423028,1736524274046,-1813.78,0.00010928,2]
[348423029,1736524274056,-500.0,0.00010928,2]
[348423030,1736524274068,-500.0,0.00010928,2]
[348423031,1736524274078,-5166.39,0.00010928,2]
[348423032,1736524274088,-3593.7,0.00010928,2]
[348423033,1736524274097,-1020.92,0.00010928,2]
[348423034,1736524274108,-1241.67,0.00010928,2]
[348423035,1736524274117,-742.95,0.00010928,2]
[348423036,1736524274127,-675.3,0.00010928,2]
[348423037,1736524274139,-792.94,0.00010928,2]
[348423038,1736524274148,-1052.3,0.00010928,2]
[348423039,1736524274158,-675.43,0.00010929,2]
[348423040,1736524274167,-714.54,0.00010929,2]
[348423041,1736524274176,-500.0,0.00010929,2]
[348423042,1736524274186,-3297.03,0.00010929,2]
[348423043,1736524274195,-764.62,0.00010929,2]
[348423044,1736524274205,-500.0,0.00010929,2]
[348423045,1736524274215,-621.27,0.00010929,2]
[348423046,1736524274224,-500.0,0.00010929,2]
[348423047,1736524274233,-500.0,0.00010929,2]
[348423048,1736524274243,-500.0,0.00010929,2]
[348423049,1736524274253,-535.32,0.00010929,2]
[348423050,1736524274262,-1434.01,0.00010929,2]
[348423051,1736524274271,-500.0,0.00010929,2]
[348423052,1736524274282,-635.49,0.00010929,2]
[348423053,1736524274291,-1010.79,0.00010929,2]
[348423054,1736524274301,-500.0,0.00010929,2]
[348423055,1736524274311,-1419.64,0.00010929,2]
[348423056,1736524274320,-609.13,0.00010929,2]
[348423057,1736524274329,-1774.64,0.00010929,2]
[348423058,1736524274339,-1039.15,0.00010929,2]
[348423059,1736524274348,-528.76,0.00010929,2]
[348423060,1736524274358,-994.56,0.00010929,2]
[348423061,1736524274367,-593.02,0.00010929,2]
[348423062,1736524274377,-814.5,0.00010929,2]
[348423063,1736524274387,-1240.07,0.00010929,2]
[348423064,1736524274396,-868.17,0.00010929,2]
[348423065,1736524274407,-953.37,0.00010929,2]
[348423066,1736524274416,-500.0,0.00010929,2]
[348423067,1736524274425,-789.01,0.00010929,2]
[348423068,1736524274435,-1265.34,0.00010929,2]
[348423069,1736524274444,-500.0,0.00010929,2]
[348423070,1736524274454,-500.0,0.00010929,2]
[348423071,1736524274464,-3093.1,0.00010929,2]
[348423072,1736524274474,-864.42,0.00010929,2]
[348423073,1736524274485,-500.0,0.00010929,2]
[348423074,1736524274495,-1402.75,0.00010929,2]
[348423075,1736524274505,-1766.75,0.00010929,2]
[348423076,1736524274515,-500.0,0.00010929,2]
[348423077,1736524274524,-555.91,0.00010929,2]
[348423078,1736524274536,-652.78,0.00010929,2]
[348423079,1736524274546,-608.24,0.00010929,2]
[348423080,1736524274556,-4401.25,0.00010929,2]
[348423081,1736524274566,-500.0,0.00010929,2]
[348423082,1736524274576,-500.0,0.00010929,2]
[348423083,1736524274587,-518.1022013,0.00010929,2]
[348423084,1736524274597,-880.99,0.00010929,2]
[348423085,1736524274606,-4953.9,0.00010929,2]
[348423086,1736524274616,-500.0,0.00010929,2]
[348423087,1736524274625,-500.0,0.00010929,2]
[348423088,1736524274635,-1040.05,0.00010929,2]
[348423089,1736524274645,-500.0,0.00010929,2]
[348423090,1736524274655,-500.0,0.00010929,2]
[348423091,1736524274664,-728.84,0.00010929,2]
[348423092,1736524274674,-787.78,0.00010929,2]
[348423093,1736524274683,-901.88,0.00010929,2]
[348423094,1736524274693,-895.76,0.00010929,2]
[348423095,1736524274702,-677.22,0.00010929,2]
[348423096,1736524274712,-500.0,0.00010929,2]
[348423097,1736524274721,-812.91,0.00010929,2]
[348423098,1736524274731,-2539.7,0.00010929,2]
[348423099,1736524274740,-500.0,0.00010929,2]
[348423100,1736524274750,-500.0,0.00010929,2]
[348423101,1736524274760,-626.16,0.00010929,2]
[348423102,1736524274770,-500.0,0.00010929,2]
[348423103,1736524274779,-544.97,0.00010929,2]
[348423104,1736524274790,-500.0,0.00010929,2]
[348423105,1736524274799,-500.0,0.00010929,2]
[348423106,1736524274808,-707.45,0.00010929,2]
[348423107,1736524274818,-5186.84,0.00010929,2]
[348423108,1736524274828,-500.0,0.00010929,2]
[348423109,1736524274838,-500.0,0.00010929,2]
[348423110,1736524274847,-686.88,0.00010929,2]
[348423111,1736524274857,-500.0,0.00010929,2]
[348423112,1736524274868,-500.0,0.00010929,2]
[348423113,1736524274879,-657.79,0.00010929,2]
[348423114,1736524274889,-500.0,0.00010929,2]
[348423115,1736524274899,-856.71,0.00010929,2]
[348423116,1736524274909,-783.7,0.00010929,2]
[348423117,1736524274924,-794.78,0.00010929,2]
[348423118,1736524274933,-1062.86,0.00010929,2]
[348423119,1736524274943,-3899.76,0.00010929,2]
[348423120,1736524274955,-500.0,0.00010929,2]
[348423121,1736524274964,-500.0,0.00010929,2]
[348423122,1736524274975,-500.0,0.00010929,2]
[348423123,1736524274985,-427.26329408,0.00010929,2]
[348423124,1736524274997,-634.52,0.00010929,2]
[348423125,1736524275007,-1022.03,0.00010929,2]
[348423126,1736524275018,-939.3,0.00010929,2]
[348423127,1736524275027,-691.24,0.00010929,2]
[348423128,1736524275038,-4054.05,0.00010929,2]
[348423129,1736524275047,-813.45,0.00010929,2]
[348423130,1736524275057,-500.0,0.00010929,2]
[348423131,1736524275067,-500.0,0.00010929,2]
[348423132,1736524275077,-1362.38,0.00010929,2]
[348423133,1736524275087,-500.0,0.00010929,2]
[348423134,1736524275097,-1051.14,0.00010929,2]
[348423135,1736524275107,-1335.65,0.00010929,2]
[348423136,1736524275116,-941.46,0.00010929,2]
[348423137,1736524275126,-1314.49,0.00010929,2]
[348423138,1736524275136,-500.0,0.00010929,2]
[348423139,1736524275152,-500.0,0.00010929,2]
[348423140,1736524275162,-500.0,0.00010929,2]
[348423141,1736524275171,-2098.32,0.00010929,2]
[348423142,1736524275181,-1156.61,0.00010929,2]
[348423143,1736524275190,-659.09,0.00010929,2]
[348423144,1736524275200,-500.0,0.00010929,2]
[348423145,1736524275210,-1381.15,0.00010929,2]
[348423146,1736524275221,-500.0,0.00010929,2]
[348423147,1736524275230,-500.0,0.00010929,2]
[348423148,1736524275240,-1912.15,0.00010929,2]
[348423149,1736524275250,-511.82,0.00010929,2]
[348423150,1736524275259,-951.49,0.00010929,2]
[348423151,1736524275269,-622.11,0.00010929,2]
[348423152,1736524275278,-500.0,0.0001093,2]
[348423153,1736524275287,-4721.83,0.0001093,2]
[348423154,1736524275462,-175.29154347,0.0001093,2]
[348423155,1736524275472,-952.88,0.0001093,2]
[348423156,1736524275482,-500.0,0.0001093,2]
[348423157,1736524275493,-705.22,0.0001093,2]
[348423158,1736524275502,-974.31,0.0001093,2]
[348423159,1736524275513,-1038.13,0.0001093,2]
[348423160,1736524275523,-500.0,0.0001093,2]
[348423161,1736524275533,-579.82,0.0001093,2]
[348423162,1736524275542,-1012.33,0.0001093,2]
[348423163,1736524275552,-648.63,0.0001093,2]
[348423164,1736524275561,-500.0,0.0001093,2]
[348423165,1736524275571,-571.87,0.0001093,2]
[348423166,1736524275581,-500.0,0.0001093,2]
[348423167,1736524275590,-1172.84,0.0001093,2]
[348423168,1736524275599,-796.64,0.0001093,2]
[348423169,1736524275609,-974.54,0.0001093,2]
[348423170,1736524275618,-1273.5,0.0001093,2]
[348423171,1736524275627,-659.75,0.0001093,2]
[348423172,1736524275637,-886.68,0.0001093,2]
[348423173,1736524275648,-500.0,0.0001093,2]
[348423174,1736524275658,-500.0,0.0001093,2]
[348423175,1736524275668,-1963.72,0.0001093,2]
[348423176,1736524275677,-2272.62,0.0001093,2]
[348423177,1736524275687,-1591.49,0.0001093,2]
[348423178,1736524275696,-6187.03,0.0001093,2]
[348423179,1736524275708,-2329.78,0.0001093,2]
[348423180,1736524275718,-1822.9,0.0001093,2]
[348423181,1736524275728,-2565.68,0.0001093,2]
[348423182,1736524275739,-1432.42,0.0001093,2]
[348423183,1736524275748,-3150.34,0.0001093,2]
[348423184,1736524275758,-1975.6,0.00010942,2]
[348423185,1736524275769,-500.0,0.00010957,2]
[348423186,1736524275778,-150.0,0.00010958,2]
[348423187,1736524275788,-7500.0,0.00010958,2]
[348423188,1736524275799,-7500.0,0.00010958,2]
[348423189,1736524275809,-7500.0,0.00010958,2]
[348423190,1736524275818,-7500.0,0.00010958,2]
[348423191,1736524275828,-7500.0,0.00010958,2]
[348423192,1736524275838,-7500.0,0.00010958,2]
[348423193,1736524275848,-7500.0,0.00010958,2]
[348423194,1736524275858,-7500.0,0.00010958,2]
[348423195,1736524275867,-7500.0,0.00010958,2]
[348423196,1736524275877,-7500.0,0.00010958,2]
[348423197,1736524275887,-7500.0,0.00010958,2]
[348423198,1736524275899,-7500.0,0.00010958,2]
[348423199,1736524275908,-7500.0,0.00010958,2]
[348423200,1736524275918,-7500.0,0.00010958,2]
[348423201,1736524275931,-7500.0,0.00010958,2]
[348423202,1736524275941,-7500.0,0.00010958,2]
[348423203,1736524275950,-7500.0,0.00010958,2]
[348423204,1736524275960,-7500.0,0.00010958,2]
[348423205,1736524275971,-7500.0,0.00010958,2]
[348423206,1736524275981,-7500.0,0.00010958,2]
[348423207,1736524275991,-7500.0,0.00010958,2]
[348423208,1736524276000,-999.0,0.00010958,2]
[348423209,1736524276010,-500.0,0.00010959,2]
[348423210,1736524276020,-2000.0,0.00010959,2]
[348423211,1736524276029,-500.0,0.00010959,2]
[348423212,1736524276039,-200.0,0.00010959,2]
[348423213,1736524276049,-150.0,0.00010959,2]
[348423214,1736524276059,-12715.82813021,0.00010968,2]
[348423215,1736524276068,-1879.7463415,0.00010969,2]
[348423216,1736524276077,-1879.7463415,0.00010969,2]
[348423217,1736524276087,-1883.34,0.00010969,2]
[348423218,1736524276096,-1704.97,0.00010969,2]
[348423219,1736524276106,-772.13,0.00010969,2]
[348423220,1736524276116,-4013.17,0.00010969,2]
[348423221,1736524276126,-12715.82813021,0.0001097,2]
[348423222,1736524276135,-200.0,0.0001097,2]
[348423223,1736524276147,-1495.07453032,0.0001097,2]
[348423224,1736524276156,-183565.0,0.0001097,2]
[348423225,1736524276166,-150.0,0.0001097,2]
[348423226,1736524276176,-150.0,0.0001097,2]
[348423227,1736524276186,-1017.12718664,0.00010971,2]
[348423228,1736524276195,-1495.07453032,0.00010971,2]
[348423229,1736524276204,-1017.12718664,0.00010971,2]
[348423230,1736524276214,-1879.7463415,0.00010972,2]
[348423231,1736524276223,-9541.12848619,0.00010972,2]
[348423232,1736524276232,-10412.96828887,0.00010973,2]
[348423233,1736524276244,-748.35823073,0.00010973,2]
[348423234,1736524276256,-6236.28937078,0.00010973,2]
[348423235,1736524276268,-12715.82813021,0.00010974,2]
[348423236,1736524276277,-9541.12848619,0.00010974,2]
[348423237,1736524276289,-987.91,0.00010974,2]
[348423238,1736524276299,-1017.12718664,0.00010974,2]
[348423239,1736524276309,-150.0,0.00010974,2]
[348423240,1736524276319,-200.0,0.00010975,2]
[348423241,1736524276330,-822.7554592,0.00010975,2]
[348423242,1736524276341,-3979.5197683,0.00010975,2]
[348423243,1736524276353,-16903.8328196,0.00010975,2]
[348423244,1736524276363,-748.35823073,0.00010975,2]
[348423245,1736524276373,-1017.12718664,0.00010975,2]
[348423246,1736524276383,-6236.28937078,0.00010976,2]
[348423247,1736524276394,-80808.52629105,0.00010977,2]
[348423248,1736524276404,-1615.84583651,0.00010977,2]
[348423249,1736524276414,-200.0,0.00010978,2]
[348423250,1736524276423,-4556.73334476,0.00010978,2]
[348423251,1736524276433,-1017.12718664,0.00010978,2]
[348423252,1736524276443,-80808.52629105,0.00010978,2]
[348423253,1736524276453,-9541.12848619,0.00010979,2]
[348423254,1736524276463,-10412.96828887,0.00010979,2]
[348423255,1736524276472,-1495.07453032,0.00010979,2]
[348423256,1736524276482,-1879.7463415,0.00010979,2]
[348423257,1736524276491,-12715.82813021,0.0001098,2]
[348423258,1736524276500,-200.0,0.0001098,2]
[348423259,1736524276510,-1879.7463415,0.0001098,2]
[348423260,1736524276519,-680.47839323,0.0001098,2]
[348423261,1736524276528,-680.47839323,0.0001098,2]
[348423262,1736524276538,-80808.52629105,0.0001098,2]
[348423263,1736524276547,-80808.52629105,0.0001098,2]
[348423264,1736524276557,-680.47839323,0.00010981,2]
[348423265,1736524276566,-1310.69634247,0.00010981,2]
[348423266,1736524276576,-6236.28937078,0.00010982,2]
[348423267,1736524276585,-11622.64,0.00010982,2]
[348423268,1736524276595,-4556.73334476,0.00010982,2]
[348423269,1736524276604,-200.0,0.00010982,2]
[348423270,1736524276613,-680.47839323,0.00010983,2]
[348423271,1736524276623,-10412.96828887,0.00010983,2]
[348423272,1736524276633,-2000.0,0.00010983,2]
[348423273,1736524276643,-200.0,0.00010983,2]
[348423274,1736524276652,-2000.0,0.00010983,2]
[348423275,1736524276661,-200.0,0.00010983,2]
[348423276,1736524276670,-10412.96828887,0.00010983,2]
[348423277,1736524276680,-314885.83407498,0.00010983,2]
[348423278,1736524276690,-1780.28683305,0.00010984,2]
[348423279,1736524276700,-209.71402304,0.00010984,2]
[348423280,1736524276709,-200.0,0.00010984,2]
[348423281,1736524276719,-10055.2566328,0.00010984,2]
[348423282,1736524276728,-690.10869143,0.00010984,2]
[348423283,1736524276738,-12715.82813021,0.00010985,2]
[348423284,1736524276747,-22232.64551625,0.00010985,2]
[348423285,1736524276757,-748.35823073,0.00010985,2]
[348423286,1736524276766,-1495.07453032,0.00010985,2]
[348423287,1736524276775,-80808.52629105,0.00010985,2]
[348423288,1736524276785,-200.0,0.00010985,2]
[348423289,1736524276795,-6236.28937078,0.00010985,2]
[348423290,1736524276805,-1780.28683305,0.00010985,2]
[348423291,1736524276814,-1952.02928685,0.00010985,2]
[348423292,1736524276824,-5615.32291378,0.00010986,2]
[348423293,1736524276833,-1952.02928685,0.00010986,2]
[348423294,1736524276842,-28076.61456894,0.00010986,2]
[348423295,1736524276852,-200.0,0.00010986,2]
[348423296,1736524276862,-75667.01062967,0.00010986,2]
[348423297,1736524276871,-500.0,0.00010986,2]
[348423298,1736524276880,-24332.86195335,0.00010986,2]
[348423299,1736524276892,-12715.82813021,0.00010987,2]
[348423300,1736524276902,-1615.84583651,0.00010987,2]
[348423301,1736524276912,-18812.68652391,0.00010987,2]
[348423302,1736524276922,-519.57473206,0.00010987,2]
[348423303,1736524276935,-680.47839323,0.00010987,2]
[348423304,1736524276944,-690.10869143,0.00010987,2]
[348423305,1736524276954,-338.93457974,0.00010988,2]
[348423306,1736524276964,-200.0,0.00010988,2]
[348423307,1736524276974,-151334.02125935,0.00010988,2]
[348423308,1736524276983,-748.35823073,0.00010988,2]
[348423309,1736524276993,-22232.64551625,0.00010988,2]
[348423310,1736524277003,-390.38725938,0.00010988,2]
[348423311,1736524277013,-1310.69634247,0.00010988,2]
[348423312,1736524277023,-80808.52629105,0.00010988,2]
[348423313,1736524277033,-690.10869143,0.00010988,2]
[348423314,1736524277043,-338.93457974,0.00010988,2]
[348423315,1736524277052,-1879.7463415,0.00010988,2]
[348423316,1736524277061,-4557.61969385,0.00010988,2]
[348423317,1736524277070,-28076.61456894,0.00010989,2]
[348423318,1736524277080,-208.33693386,0.00010989,2]
[348423319,1736524277089,-1615.84583651,0.00010989,2]
[348423320,1736524277098,-4556.73334476,0.00010989,2]
[348423321,1736524277108,-1694.67289871,0.00010989,2]
[348423322,1736524277117,-18812.68652391,0.00010989,2]
[348423323,1736524277127,-22232.64551625,0.0001099,2]
[348423324,1736524277137,-390.38725938,0.0001099,2]
[348423325,1736524277149,-1310.69634247,0.0001099,2]
[348423326,1736524277158,-794.97,0.0001099,2]
[348423327,1736524277169,-200.0,0.0001099,2]
[348423328,1736524277178,-652.20764439,0.0001099,2]
[348423329,1736524277188,-1436121.78690704,0.0001099,2]
[348423330,1736524277198,-1495.07453032,0.0001099,2]
[348423331,1736524277208,-748.35823073,0.0001099,2]
[348423332,1736524277217,-6236.28937078,0.0001099,2]
[348423333,1736524277227,-519.57473206,0.00010991,2]
[348423334,1736524277238,-390.38725938,0.00010991,2]
[348423335,1736524277247,-326.1038222,0.00010991,2]
[348423336,1736524277257,-652.20764439,0.00010991,2]
[348423337,1736524277268,-500.0,0.00010991,2]
[348423338,1736524277278,-500.0,0.00010991,2]
[348423339,1736524277287,-150.0,0.00010991,2]
[348423340,1736524277298,-150.0,0.00010991,2]
[348423341,1736524277308,-150.0,0.00010991,2]
[348423342,1736524277318,-3375.0,0.00010991,2]
[348423343,1736524277330,-75667.01062967,0.00010991,2]
[348423344,1736524277341,-75667.01062967,0.00010991,2]
[348423345,1736524277351,-151334.02125935,0.00010991,2]
[348423346,1736524277361,-209.71402304,0.00010991,2]
[348423347,1736524277371,-326.1038222,0.00010991,2]
[348423348,1736524277381,-10412.96828887,0.00010992,2]
[348423349,1736524277393,-1615.84583651,0.00010992,2]
[348423350,1736524277403,-298.46254875,0.00010992,2]
[348423351,1736524277413,-1615.84583651,0.00010992,2]
[348423352,1736524277422,-9541.12848619,0.00010993,2]
[348423353,1736524277432,-4556.73334476,0.00010993,2]
[348423354,1736524277442,-9541.12848619,0.00010993,2]
[348423355,1736524277454,-666.0,0.00010993,2]
[348423356,1736524277463,-680.47839323,0.00010994,2]
[348423357,1736524277473,-18812.68652391,0.00010994,2]
[348423358,1736524277483,-1310.69634247,0.00010994,2]
[348423359,1736524277494,-200.0,0.00010994,2]
[348423360,1736524277503,-1310.69634247,0.00010994,2]
[348423361,1736524277513,-326982.60876113,0.00010994,2]
[348423362,1736524277522,-666.0,0.00010994,2]
[348423363,1736524277532,-666.0,0.00010994,2]
[348423364,1736524277542,-200.0,0.00010995,2]
[348423365,1736524277552,-666.0,0.00010995,2]
[348423366,1736524277561,-326.1038222,0.00010995,2]
[348423367,1736524277571,-209.71402304,0.00010995,2]
[348423368,1736524277580,-1495.07453032,0.00010995,2]
[348423369,1736524277591,-9541.12848619,0.00010995,2]
[348423370,1736524277601,-1615.84583651,0.00010995,2]
[348423371,1736524277610,-75667.01062967,0.00010995,2]
[348423372,1736524277620,-151334.02125935,0.00010995,2]
[348423373,1736524277629,-690.10869143,0.00010995,2]
[348423374,1736524277639,-1952.02928685,0.00010995,2]
[348423375,1736524277652,-4556.73334476,0.00010995,2]
[348423376,1736524277662,-200.0,0.00010995,2]
[348423377,1736524277672,-1017.12718664,0.00010995,2]
[348423378,1736524277682,-326982.60876113,0.00010996,2]
[348423379,1736524277692,-24332.86195335,0.00010996,2]
[348423380,1736524277702,-6236.28937078,0.00010996,2]
[348423381,1736524277712,-200.0,0.00010996,2]
[348423382,1736524277721,-519.57473206,0.00010996,2]
[348423383,1736524277731,-1952.02928685,0.00010996,2]
[348423384,1736524277741,-151334.02125935,0.00010996,2]
[348423385,1736524277752,-4129.4430857,0.00010996,2]
[348423386,1736524277762,-4556.73334476,0.00010996,2]
[348423387,1736524277773,-28076.61456894,0.00010997,2]
[348423388,1736524277783,-1694.67289871,0.00010997,2]
[348423389,1736524277793,-10412.96828887,0.00010997,2]
[348423390,1736524277803,-75667.01062967,0.00010997,2]
[348423391,1736524277814,-5615.32291378,0.00010997,2]
[348423392,1736524277824,-4557.61969385,0.00010997,2]
[348423393,1736524277834,-200.0,0.00010997,2]
[348423394,1736524277843,-1310.69634247,0.00010997,2]
[348423395,1736524277852,-652.20764439,0.00010997,2]
[348423396,1736524277862,-10055.2566328,0.00010997,2]
[348423397,1736524277872,-1780.28683305,0.00010997,2]
[348423398,1736524277882,-390.38725938,0.00010997,2]
[348423399,1736524277892,-519.57473206,0.00010998,2]
[348423400,1736524277903,-652.20764439,0.00010998,2]
[348423401,1736524277913,-151334.02125935,0.00010998,2]
[348423402,1736524277922,-200.0,0.00010998,2]
[348423403,1736524277934,-748.35823073,0.00010998,2]
[348423404,1736524277945,-22232.64551625,0.00010998,2]
[348423405,1736524277954,-298.46254875,0.00010999,2]
[348423406,1736524277966,-519.57473206,0.00010999,2]
[348423407,1736524277976,-200.0,0.00010999,2]
[348423408,1736524277985,-690.10869143,0.00010999,2]
[348423409,1736524277995,-38408.79248752,0.00010999,2]
[348423410,1736524278009,-200.0,0.00010999,2]
[348423411,1736524278019,-145000.0,0.00011,4]
[348423412,1736524278029,-370964.45486036,0.00011,2]
[348423413,1736524278039,-10055.2566328,0.00011,2]
[348423414,1736524278048,-550.0,0.00011,2]
[348423415,1736524278058,-41161.26442615,0.00011,2]
[348423416,1736524278069,-4104607.34785106,0.00011,2]
[348423417,1736524278079,-151.0,0.00011,2]
[348423418,1736524278090,-151.0,0.00011,2]
[348423419,1736524278100,-151.0,0.00011,2]
[348423420,1736524278110,-160.440629,0.00011,2]
[348423421,1736524278120,-160.440629,0.00011,2]
[348423422,1736524278131,-606.92237977,0.00011018,2]
[348423423,1736524278145,-500.0,0.00011018,2]
[348423424,1736524278156,-150.0,0.00011018,2]
[348423425,1736524278167,-3375.0,0.00011018,2]
[348423426,1736524278177,-1747.53,0.00011043,2]
[348423427,1736524278186,-500.0,0.00011043,2]
[348423428,1736524278195,-1348.6,0.00011043,2]
[348423429,1736524278205,-3203.72,0.00011043,2]
[348423430,1736524278214,-1647.23,0.00011043,2]
[348423431,1736524278223,-1103.85,0.00011043,2]
[348423432,1736524278232,-1226.84,0.00011043,2]
[348423433,1736524278244,-843.28,0.00011043,2]
[348423434,1736524278254,-1796.31,0.00011043,2]
[348423435,1736524278265,-1043.14,0.00011043,2]
[348423436,1736524278274,-1316.27,0.00011043,2]
[348423437,1736524278284,-1311.99,0.00011043,2]
[348423438,1736524278295,-2157.87,0.00011043,2]
[348423439,1736524278306,-2366.16,0.00011043,2]
[348423440,1736524278316,-2149.91,0.00011043,2]
[348423441,1736524278327,-694.62929174,0.00011046,2]
[348423442,1736524278337,-150.0,0.00011046,2]
[348423443,1736524278347,-3375.0,0.00011046,2]
[348423444,1736524278357,-186.0,0.00011073,2]
[348423445,1736524278367,-3375.0,0.00011073,2]
[348423446,1736524278377,-170.77756,0.00011081,2]
[348423447,1736524278386,-179.133703,0.00011081,2]